Cogmind - Beta 14 @@@ ROGUE MODE // 2024.08.26 @ 01:12:54 Player: Trione Result: Destroyed by V5-FY2(R) with Subdweller Laser Performance ------------- Evolutions (0) 0 Regions Visited (2) 400 Robots Destroyed (29) 145 Value Destroyed (682) 682 Prototype IDs (0) 0 Alien Tech Used (0) 0 Bonus (0) 0 TOTAL SCORE: 1227 Bonus ------- None Cogmind --------- Core Integrity 0/250 Matter 280/300 Energy 100/100 System Corruption 2% Temperature Cool (6) Movement Rolling (210) Ox10 Location -10/Subcaves Parts ------- > --- POWER (1) -------- Subdweller Power Source > --- PROPULSION (2) --- Subdweller Monowheel Subdweller Monowheel > --- UTILITY (2) ------ Humpback > --- WEAPON (2) ------- Subdweller Laser Maul > --- INVENTORY (35) --- Subdweller Power Source Light Treads Light Treads Subdweller Monowheel Improved Heat Sink Disposable Heat Sink Small Storage Unit Subdweller Optics Terrain Scanner Seismic Detector Light Armor Plating Light Armor Plating Scrap Shield Scrap Shield Scrap Shield Cobbler Unit Medium Laser Subdweller Laser Subdweller Beam Cannon Battle Rifle Battle Cannon Battle Cannon Subdweller Shrapnel Launcher Flamer Piercing Trap Scrap Shield Fragment (48) Scrap Shield Fragment (47) Scrap Shield Fragment (45) Peak State ------------ > --- POWER ------------ Subdweller Power Source > --- PROPULSION ------- Wheel Subdweller Monowheel > --- UTILITY ---------- Humpback > --- WEAPON ----------- Subdweller Laser Subdweller Laser > --- INVENTORY -------- Subdweller Power Source Light Treads Light Treads Subdweller Monowheel Subdweller Monowheel Improved Heat Sink Disposable Heat Sink Small Storage Unit Subdweller Optics Terrain Scanner Seismic Detector Light Armor Plating Light Armor Plating Scrap Shield Scrap Shield Scrap Shield Cobbler Unit Medium Laser Subdweller Laser Subdweller Beam Cannon Battle Rifle Battle Cannon Battle Cannon Subdweller Shrapnel Launcher Flamer Maul Piercing Trap Scrap Shield Fragment Scrap Shield Fragment Scrap Shield Fragment [Rating: 17] Favorites ----------- Power Ion Engine Engine Ion Engine Propulsion Wheel Treads Light Treads Wheel Wheel Utility Humpback Device Improved Heat Sink Storage Humpback Weapon Beam Cannon Energy Gun Subdweller Laser Energy Cannon Beam Cannon Ballistic Gun Assault Rifle Impact Weapon Maul Build | -11 -10 -10 ------- Run | Yrd Mat Sub Slots Evolved . | . . . Power . | . . . Propulsion . | . . . Utility . | . . . Weapon . | . . . Parts Attached 44 | 7 11 26 Power 4 | 1 1 2 Engine 4 | 1 1 2 Core . | . . . Reactor . | . . . Propulsion 21 | 2 5 14 Treads 4 | . 2 2 Leg . | . . . Wheel 17 | 2 3 12 Hover . | . . . Flight . | . . . Utility 5 | 2 1 2 Device 3 | 1 1 1 Storage 2 | 1 . 1 Processor . | . . . Hackware . | . . . Protection . | . . . Artifact . | . . . Weapon 14 | 2 4 8 Energy Gun 3 | . . 3 Energy Cannon 6 | . 3 3 Ballistic Gun 3 | 2 1 . Ballistic Cannon . | . . . Launcher . | . . . Special Weapon . | . . . Impact Weapon 2 | . . 2 Slashing Weapon . | . . . Piercing Weapon . | . . . Special Melee Weapon . | . . . Unidentified Prototypes . | . . . Parts Lost 7 | . . 7 Power 2 | . . 2 Propulsion 2 | . . 2 Utility . | . . . Weapon 3 | . . 3 Highest Loss Streak 4 | . . 4 To Critical Strikes . | . . . Average Slot Usage (%) 89 | . 100 85 Engine 13 | . 14 13 Wheel 27 | . 27 27 Device 4 | . 14 . Storage 14 | . 14 14 Energy Gun 8 | . . 12 Energy Cannon 16 | . 20 14 Ballistic Gun 2 | . 7 . Peak Build Rating 17 | 7 9 17 Average Rating 10 | 4 8 12 On Entrance 5 | . 7 9 Naked Turns . | . . . Heaviest Build 213 | 12 17 213 Greatest Support 40 | 20 26 40 Greatest Overweight (x) 10 | . 1 10 Average Overweight (x) 3 | . . 6 Largest Inventory Capacity 35 | 8 8 35 Average Capacity 25 | 7 8 33 Most Carried 34 | 5 8 34 Average Carried 17 | 3 7 22 Final Capacity 35 | 8 8 35 Final Carried 32 | 5 8 32 Class Distribution -------------------- 62% | Hauler-Mutant 37% | Mutant Dominant Class ---------------- Mutant | -10/Materials Hauler-Mutant | -10/Subcaves Resources | -11 -10 -10 ----------- Run | Yrd Mat Sub Matter Collected 690 | 286 167 237 Remotely . | . . . Salvage Created 1167 | 94 721 352 Parts 58 | 6 34 18 Haulers Intercepted 2 | . 2 . Recyclers Shooed 1 | . 1 . Parts Field Recycled . | . . . Retrieved Matter . | . . . Parts Self-Destructed 8 | . . 8 Prevented . | . . . Kills | -11 -10 -10 ------- Run | Yrd Mat Sub Combat Hostiles Destroyed 19 | . 10 9 Guns 4 | . 2 2 Cannons 15 | . 8 7 Classes Destroyed 10 | 2 6 2 Worker 2 | . 2 . Builder 1 | . 1 . Tunneler 1 | 1 . . Hauler 2 | . 2 . Recycler 3 | 1 2 . Watcher 1 | . 1 . Swarmer 4 | . 2 2 Grunt 9 | . 8 1 Sentry 1 | . . 1 Subdweller 5 | . . 5 Best Kill Streak 3 | 2 3 3 Combat Bots Only 3 | . 2 3 Max Kills in Single Turn 1 | 1 1 1 Gunslinging . | . . . Exploded . | . . . Melee . | . . . Uniques/NPCs Destroyed . | . . . Combat | -11 -10 -10 -------- Run | Yrd Mat Sub Hostile Shots Fired 107 | . 32 75 Missed 35 | . 7 28 Damage Taken 1330 | . 276 1054 Core 268 | . 22 246 Absorbed by Shields . | . . . Core Remaining (%) 100 | 100 . . Volleys Fired 88 | 4 43 41 Largest 2 | 2 2 2 Hottest 140 | 40 120 140 Shots Fired 172 | 8 86 78 Gun 50 | 8 24 18 Cannon 122 | . 62 60 Launcher . | . . . Special . | . . . Kinetic 32 | 8 24 . Thermal 140 | . 62 78 Explosive . | . . . Electromagnetic . | . . . Robot Hit Streak 9 | 6 9 9 Robot Miss Streak 5 | . 5 2 Penetration Max . | . . . Secondary Targets . | . . . Shots Hit Robots 108 | 6 50 52 Core Hits 43 | 3 25 15 Critical Kills . | . . . Critical Parts Destroyed . | . . . Critical Strikes . | . . . Melee Attacks 7 | . . 7 Impact 7 | . . 7 Slashing . | . . . Piercing . | . . . Sneak Attacks . | . . . Combat Hostiles . | . . . Follow-up Attacks . | . . . Damage Inflicted 1828 | 69 826 933 Guns 460 | 69 166 225 Cannons 1314 | . 660 654 Explosions . | . . . Melee 54 | . . 54 Ramming . | . . . Kinetic 235 | 69 166 . Thermal 1539 | . 660 879 Explosive . | . . . Electromagnetic . | . . . Impact 54 | . . 54 Slashing . | . . . Piercing . | . . . Highest Corruption 2 | . 2 2 Average Corruption 2 | . 2 2 Corruption Purged . | . . . Corruption Blocked . | . . . Effects 26 | . 1 25 Message Errors 7 | . . 7 Matter Fused 3 | . 1 2 Heat Flow Errors 3 | . . 3 Energy Discharges 2 | . . 2 Parts Fused 1 | . . 1 Data Loss (minor) 2 | . . 2 Data Loss (major) 2 | . . 2 Misfires 4 | . . 4 Alerts 2 | . . 2 Overload Shots . | . . . Overflow Damage . | . . . Projectiles . | . . . Explosions . | . . . Melee . | . . . Knockbacks . | . . . Impact . | . . . Kinetic . | . . . Secondary . | . . . Self-Inflicted Damage . | . . . Shots . | . . . Rammed . | . . . Targets Rammed . | . . . Kicked . | . . . Crushed . | . . . Highest Temperature 253 | . 200 253 Average Temperature 52 | . 45 64 Received Heat Transfer 276 | . 120 156 Siege Activations . | . . . Robots Corrupted . | . . . Combat Hostiles . | . . . Parts Fried . | . . . Impact Corruptions . | . . . Robots Melted . | . . . Combat Hostiles . | . . . Parts Melted 7 | . 2 5 Heat Transferred 2976 | . 1369 1607 Parts Sabotaged . | . . . Parts Stolen . | . . . Parts Stripped . | . . . Power Chain Reactions . | . . . Alert | -11 -10 -10 ------- Run | Yrd Mat Sub Peak Influence 212 | 10 212 . Initial 6 | . 6 . Average 70 | 2 74 . Maximum Alert Level 1 | . 1 . Low Security (%) 96 | 100 96 . Level 1 3 | . 3 . Level 2 . | . . . Level 3 . | . . . Level 4 . | . . . Level 5 . | . . . High Security . | . . . Max Security . | . . . Squads Dispatched 1 | . 1 . Investigation 1 | . 1 . Extermination . | . . . Reinforcement . | . . . Assault . | . . . Garrison . | . . . Intercept . | . . . Searches Triggered . | . . . Construction Impeded . | . . . Haulers Reinforced . | . . . Active Scanning Responses . | . . . Cargo Convoy Interrupts . | . . . Stealth | -11 -10 -10 --------- Run | Yrd Mat Sub Distress Signals . | . . . Communications Jammed . | . . . Distress Signals . | . . . Times Spotted 36 | . 20 16 Peak Tracking Total 5 | . 5 4 Tactical Retreats 3 | . 2 1 Traps | -11 -10 -10 ------- Run | Yrd Mat Sub Traps Triggered 4 | . 2 2 Indirectly . | . . . Trap Hack Attempts . | . . . Triggered . | . . . Disarmed . | . . . Reprogrammed 5 | . 5 . Reused 4 | . 4 . Traps Extracted . | . . . Installed . | . . . Triggered 4 | . 4 . Most Traps Carried 1 | . . 1 Machines | -11 -10 -10 ---------- Run | Yrd Mat Sub Machines Disabled . | . . . Max in Single Turn . | . . . Machines Repaired . | . . . Machines Dismantled . | . . . Machines Sabotaged . | . . . Overloaded Fab Kills . | . . . Hacking | -11 -10 -10 --------- Run | Yrd Mat Sub Machines Accessed 8 | . 8 . Terminals 8 | . 8 . Fabricators . | . . . Repair Stations . | . . . Recycling Units . | . . . Scanalyzers . | . . . Garrison Access . | . . . Total Hacks 27 | . 27 . Successful 12 | . 12 . Failed 15 | . 15 . Catastrophic 2 | . 2 . Database Lockouts . | . . . Manual 18 | . 18 . Terminals 27 | . 27 . Fabricators . | . . . Repair Stations . | . . . Recycling Units . | . . . Scanalyzers . | . . . Garrison Access . | . . . Terminal Hacks 8 | . 8 . Record 1 | . 1 . Robot Analysis 1 | . 1 . Branch Access Points 1 | . 1 . Alert Level 1 | . 1 . Unreport Threat 1 | . 1 . Locate Traps 1 | . 1 . Reprogram Traps 2 | . 2 . Fabricator Hacks . | . . . Repair Station Hacks . | . . . Recycling Unit Hacks . | . . . Scanalyzer . | . . . Garrison Access Hacks . | . . . Unauthorized Hacks 4 | . 4 . Terminals 4 | . 4 . Botnet 3 | . 3 . Operators 1 | . 1 . Fabricators . | . . . Repair Stations . | . . . Recycling Units . | . . . Scanalyzers . | . . . Garrison Access . | . . . Data Cores Recovered . | . . . Used . | . . . Hacking Detections 7 | . 7 . Full Trace Events . | . . . Feedback Events . | . . . Feedback Blocked . | . . . Robot Schematics Acquired . | . . . Robots Built . | . . . Authchips . | . . . Time . | . . . Total Robot Build Rating . | . . . Part Schematics Acquired . | . . . Parts Built . | . . . Authchips . | . . . Time . | . . . Total Part Build Rating . | . . . Parts Repaired . | . . . Time . | . . . Parts Recycled . | . . . Recycled Matter . | . . . Retrieved Matter . | . . . Retrieved Components . | . . . Parts Scanalyzed . | . . . Part Schematics Acquired . | . . . Parts Damaged . | . . . Bothacking | -11 -10 -10 ------------ Run | Yrd Mat Sub Used RIF Installer . | . . . Robots Hacked . | . . . Non-combat . | . . . Combat . | . . . Robot Hacks Applied . | . . . Relay Couplers Released . | . . . Fabnet Peak Effective % . | . . . Robots Rewired . | . . . Allies Hacked . | . . . Hacks Repelled . | . . . Allies | -11 -10 -10 -------- Run | Yrd Mat Sub Total Allies . | . . . Largest Group . | . . . Highest-Rated Group . | . . . Highest-Rated Ally . | . . . Total Orders . | . . . Ally Attacks . | . . . Total Damage . | . . . Kills . | . . . Allies Corrupted . | . . . Allies Melted . | . . . Intel | -11 -10 -10 ------- Run | Yrd Mat Sub Robot Analysis Total 1 | . 1 . Derelict Logs Recovered 1 | . . 1 Drone Launches . | . . . Drone Recoveries . | . . . Exploration | -11 -10 -10 ------------- Run | Yrd Mat Sub Turns Passed 3222 | 66 980 2176 Spaces Moved 2057 | 50 912 1095 Core 3 | 3 . . Treads 1 | . 1 . Legs . | . . . Wheels 2053 | 47 911 1095 Hover . | . . . Flight . | . . . Fastest Speed 50 | 50 80 90 Average Speed 137 | 78 89 179 Slowest Speed 210 | 80 160 210 Overloaded Moves . | . . . Propulsion Burnouts . | . . . Robots Hopped . | . . . Cave-ins Triggered . | . . . Exploration Rate (%) 54 | 4 98 60 Regions Visited 2 Branch Regions 1 Pre-discovered Areas 1 | . . 1 Known Exits Taken . | . . . Unknown Exits Taken 2 | 1 1 . Scrap Searched 6 | . . 6 Spaces Dug 3 | . . 3 Terrain Destroyed 3 | . . 3 Melee 3 | . . 3 Projectile . | . . . AOE . | . . . Terrain Rammed . | . . . Walls Destroyed . | . . . Machines Disabled . | . . . Actions | -11 -10 -10 --------- Run | Yrd Mat Sub Total 2261 | 66 990 1205 Wait 15 | . 11 4 Move 2055 | 49 911 1095 Hop . | . . . Pick Up 42 | 6 8 28 Fast Attach 9 | 6 1 2 Attach 9 | 1 . 8 Detach 1 | . . 1 Swap 26 | . 10 16 Drop 9 | . 6 3 Fire 88 | 4 43 41 Melee 7 | . . 7 Ram . | . . . Kick . | . . . Crush . | . . . Escape Stasis . | . . . Rewire . | . . . Trap . | . . . Miscellaneous . | . . . Route ------- -11/Scrapyard -10/Materials (discovered 6 exits: [*Mat x3] / *Min x2 / [*Sub]) -10/Subcaves (discovered 2 exits: [*Mat x2]) History --------- Turn | Location | Event 14 | -11/Scrapyard | Discovered new exit (range 16) 67 | -11/Scrapyard | Entered Materials 67 | -10/Materials | Discovered new exit (range 7) 213 | -10/Materials | Discovered new exit (range 8) 295 | -10/Materials | Discovered new exit (range 5) 309 | -10/Materials | Build established: Mutant 335 | -10/Materials | Discovered new exit (range 16) 662 | -10/Materials | Discovered new exit (range 5) 688 | -10/Materials | Identified exit to Mines 1040 | -10/Materials | Discovered new exit (range 7) 1047 | -10/Materials | Entered Subcaves 1057 | -10/Subcaves | Learned location of Zion (-7) 1079 | -10/Subcaves | Discovered new exit (range 14) 1490 | -10/Subcaves | A swath of the cavern ceiling suddenly collapsed 1493 | -10/Subcaves | Build established: Hauler-Mutant 2346 | -10/Subcaves | Core integrity fell below 50% 2381 | -10/Subcaves | Lost 4 parts (1p1n2w) 2972 | -10/Subcaves | Discovered new exit (range 13) 3200 | -10/Subcaves | Ambushed by Subdweller buried in earth 3200 | -10/Subcaves | Ambushed by Subdweller buried in earth 3204 | -10/Subcaves | Core integrity fell below 20% 3223 | -10/Subcaves | Destroyed by V5-FY2(R) with Subdweller Laser Last Messages --------------- 02766_ Found Mak. Hammer. 02766_ Found 57 Matter. 02768_ Searching scrap... 02768_ Found Sub. Laser. 02768_ Found Sub. Shrapnel Launcher. 02768_ Found 56 Matter. 02768_ Triggered Piercing Trap. 02768_ Spikes shoot up from the floor. 02768_ Critical hit (Impale). 02772_ Acquired Sub. Shrapnel Launcher. 02817_ System corrupted: Substantial component data lost. 02857_ System corrupted: FCS attempts to trigger Sub. Laser. 02857_ System corrupted: Sub. Laser misfires. 02972_ EXIT=FOUND 02997_ System corrupted: Matter fused (-9). 03101_ System corrupted: Energy discharge (-36). 03200_ Wheel destroyed. 03200_ Sub. Laser destroyed. 03201_ V5-FY2(R): "ARGHSUB!" 03201_ CH-K3U(R): "ARGHSUB!" Map ----- +----------------------------------------------------+ | ????????????????????????????????????????????? | | ????????????????????????????????????????????? | | ????????????????????????????????????????????? | | ????????????????????????????????????????????? | | ????????????????????????????????????????????? | | ????????????????????????#???????????????????? | | ???????????????????????? "??????????????????? | | ?????????????????????### "??????????????????? | | ?????????????????#??##" " ??????????????????? | | ?????????????????? ## "" ??????????????????? | | ??????????????????? ##????????????????? | | ???????????????????? ##???????????????? | | ????????????????????? #???????????????? | | ????????????????????? ##??????????????? | | ???????????????????## ####???????????? | | ????????????????#### ##" " #???????????? | | ???????????????## ##" #???????????? | | ???????????????# " #???????????? | | ???????????????# #?#" #???????????? | | ??????????????## #?## ##??????????? | | ??????????????# ### #??????????? | | ##??#####?????# # #??????????? | | #### #####??# #### """ ###??????????? | | ## #??## ##??## #######????????????? | | ### #??### #????#R#####??????????????? | | #?# #### #????# @ ##?????????????? | | #### ### ##??## #?????????????? | | ## ###### #### ## ##?????????????? | | #???# # #####??????????????? | | #???# ########??????????????????? | | ##### ##??????????????????????? | | ### ###????????????????????? | | ### #????????????????????? | | # ##????????????????????? | | ####?????????????????????? | | ## ###????????????????????????? | | ## ## ##??????????????????????????? | | ## ##???????????????????????????? | | ### #???????????????????????????? | | #?## ##??????????????????????????? | | #??### ##?????????????????????????? | | ????## ## ##????????????????????????? | | ?????#### #????????????????????????? | | #????????#####????????????????????????? | | #######?????????????????????????????????????? | | ????????????????????????????????????????????? | | ????????????????????????????????????????????? | | ????????????????????????????????????????????? | | ????????????????????????????????????????????? | | ????????????????????????????????????????????? | +----------------------------------------------------+ Best States ------------- Heat Dissipation 39 Energy Generation 15 Energy Capacity 250 Matter Stores 300 Matter Capacity 300 Sight Range 16 Terrain Scan Density 10 Evasion (%) 44 Recoil Reduction 1 Item Schematics ----------------- None Robot Schematics ------------------ None Fabricated ------------ Nothing Alien Tech Used ----------------- None Achievements -------------- None Challenges ------------ None Game ------ Seed IntegrityLightFlightbrick Manual? 0 Play Time 00:29:22 Cumulative 1325.8 hours Start 2024.08.26 @ 00:35:40 End 2024.08.26 @ 01:12:54 Sessions 1 Manual Loads 0 Difficulty Rogue Special Mode None Game No. 469 Rogue 469 Adventurer 0 Explorer 0 Win Type - Total 30 Types 14/2/8/0/0/0/6/0/0 Lore% 74 Gallery% 89 Achievement% 85 Wizard Run 0 Options --------- Layout 1 ASCII 0 Keyboard 0 Movement Vi Keybinds 0 Fullscreen 0 Font 14/CherryShadow Map View 64x42 Zoom Use 0% Tactical HUD 1 Map Filters NONE Filters NONE Steam 1 RUN: 95acb81f-3bb5-4099-89f3-c051a1e69e78